Cogmind - Beta 16.1 @@@ ROGUE MODE // 2026.03.31 @ 14:01:25 Player: YA-B01 Result: Destroyed by 1G-751(R) with Subdweller Beam Cannon Performance ------------- Evolutions (0) 0 Regions Visited (2) 400 Robots Destroyed (28) 140 Value Destroyed (649) 649 Prototype IDs (0) 0 Alien Tech Used (0) 0 Bonus (-10) -10 TOTAL SCORE: 1179 Bonus ------- Friendly Fire -10 Cogmind --------- Core Integrity 0/250 Matter 272/300 Energy 100/100 System Corruption 1% Temperature Cool (9) Movement Rolling (120) Ox1 Location -10/Subcaves Parts ------- > --- POWER (1) -------- (None) > --- PROPULSION (2) --- Subdweller Monowheel > --- UTILITY (2) ------ Scrap Shield > --- WEAPON (2) ------- Subdweller Machine Gun Heavy Battle Rifle > --- INVENTORY (5) ---- Subdweller Power Source Subdweller Power Source Makeshift Light Armor Plating Subdweller Laser Subdweller Machine Gun Peak State ------------ > --- POWER ------------ Subdweller Power Source > --- PROPULSION ------- Light Treads > --- UTILITY ---------- Small Storage Unit Light Armor Plating > --- WEAPON ----------- Riot Gun Heavy Battle Rifle > --- INVENTORY -------- Subdweller Power Source Seismic Detector Makeshift Light Armor Plating EM Pulse Gun Subdweller Laser Subdweller Machine Gun Battle Cannon [Rating: 13] Favorites ----------- Power Improved Ion Engine Engine Improved Ion Engine Propulsion Light Treads Treads Light Treads Wheel Wheel Utility Small Storage Unit Device Seismic Detector Storage Small Storage Unit Protection Light Armor Plating Weapon Subdweller Laser Energy Gun Subdweller Laser Ballistic Gun Heavy Battle Rifle Launcher Subdweller Shrapnel Launcher Build | -11 -10 -10 ------- Run | Yrd Mat Sub Slots Evolved . | . . . Power . | . . . Propulsion . | . . . Utility . | . . . Weapon . | . . . Parts Attached 24 | 7 1 16 Power 3 | 1 . 2 Engine 3 | 1 . 2 Core . | . . . Reactor . | . . . Propulsion 5 | 2 1 2 Treads 3 | 2 . 1 Leg . | . . . Wheel 2 | . 1 1 Hover . | . . . Flight . | . . . Utility 6 | 2 . 4 Device 2 | 1 . 1 Storage 1 | 1 . . Processor . | . . . Hackware . | . . . Protection 3 | . . 3 Artifact . | . . . Weapon 10 | 2 . 8 Energy Gun 5 | 1 . 4 Energy Cannon . | . . . Ballistic Gun 4 | 1 . 3 Ballistic Cannon . | . . . Launcher 1 | . . 1 Special Weapon . | . . . Impact Weapon . | . . . Slashing Weapon . | . . . Piercing Weapon . | . . . Special Melee Weapon . | . . . Unidentified Prototypes . | . . . Parts Lost 10 | . . 10 Power 1 | . . 1 Propulsion 3 | . . 3 Utility 1 | . . 1 Weapon 5 | . . 5 Highest Loss Streak 4 | . . 4 To Critical Strikes . | . . . Average Backups 7 | 3 6 7 Power 1 | . 1 1 Propulsion . | . 1 . Utility 3 | . 3 3 Weapon 2 | . 1 3 Tool/Special . | . . . Unused Backups 10 | . . 10 Power 3 | . . 3 Propulsion . | . . . Utility 4 | . . 4 Weapon 3 | . . 3 Tool/Special . | . . . Average Slot Usage (%) 87 | . 100 86 Engine 13 | . 14 13 Treads 16 | . 14 16 Device 9 | . 14 9 Storage 13 | . 14 13 Protection 3 | . . 4 Energy Gun 15 | . 14 15 Ballistic Gun 11 | . 14 11 Peak Build Rating 13 | 7 8 13 Average Rating 10 | 6 7 10 On Entrance 5 | . 7 8 Avg Prop Armor Cover (%) 13 | . 13 . Naked Turns 3 | . . 3 Heaviest Build 27 | 11 11 27 Greatest Support 40 | 40 10 40 Greatest Overweight (x) 1 | . 1 1 Average Overweight (x) . | . 1 . Largest Inventory Capacity 8 | 8 8 8 Average Capacity 7 | 7 8 7 Most Carried 8 | 5 8 8 Average Carried 7 | 3 6 7 Final Capacity 8 | 8 8 5 Final Carried 8 | 5 8 5 Class Distribution -------------------- 57% | Scavenger-Mutant 40% | Mutant Dominant Class ---------------- Mutant | -10/Materials Scavenger-Mutant | -10/Subcaves Resources | -11 -10 -10 ----------- Run | Yrd Mat Sub Matter Collected 995 | 293 10 692 Remotely . | . . . Salvage Created 652 | 249 . 403 Parts 57 | 32 . 25 Haulers Intercepted . | . . . Recyclers Shooed . | . . . Parts Field Recycled . | . . . Retrieved Matter . | . . . Parts Self-Destructed 7 | . . 7 Prevented 1 | . . 1 Parts Restored . | . . . Kills | -11 -10 -10 ------- Run | Yrd Mat Sub Combat Hostiles Destroyed 17 | . . 17 Guns 11 | . . 11 AOE 6 | . . 6 Classes Destroyed 6 | 3 . 3 Worker 2 | 2 . . Tunneler 8 | 8 . . Recycler 1 | 1 . . Swarmer 3 | . . 3 Grunt 3 | . . 3 Subdweller 11 | . . 11 Best Kill Streak 6 | 4 . 6 Combat Bots Only 6 | . . 6 Max Kills in Single Turn 2 | 1 . 2 Gunslinging 1 | . . 1 Exploded 2 | . . 2 Melee . | . . . Uniques/NPCs Destroyed . | . . . Combat | -11 -10 -10 -------- Run | Yrd Mat Sub Hostile Shots Fired 113 | . 16 97 Missed 34 | . 6 28 Hits 79 | . 10 69 Projectile 79 | . 10 69 Damage Taken 1337 | . 123 1214 Core 258 | . 34 224 Absorbed by Shields . | . . . Core Remaining (%) 100 | 100 . . Volleys Fired 125 | 23 5 97 Largest 2 | 2 2 2 Hottest 110 | 60 60 110 Shots Fired 181 | 46 10 125 Gun 166 | 46 10 110 Cannon . | . . . Launcher 15 | . . 15 Special . | . . . Kinetic 77 | 23 5 49 Thermal 91 | 23 5 63 Explosive . | . . . Electromagnetic 13 | . . 13 Robot Hit Streak 12 | 12 6 9 Robot Miss Streak 5 | 1 2 5 Penetration Max . | . . . Secondary Targets 3 | . . 3 Max Gunslinging Chain 1 | . . 1 Shots Hit Robots 86 | 31 7 48 Core Hits 44 | 14 1 29 Critical Kills 1 | . . 1 Critical Parts Destroyed . | . . . Critical Strikes 1 | . . 1 Destroy 1 | . . 1 Melee Attacks . | . . . Impact . | . . . Slashing . | . . . Piercing . | . . . Sneak Attacks . | . . . Combat Hostiles . | . . . Follow-up Attacks . | . . . Damage Inflicted 2214 | 307 73 1834 Guns 989 | 307 70 612 Cannons . | . . . Explosions 1218 | . . 1218 Melee . | . . . Ramming 7 | . 3 4 Kinetic 1628 | 98 34 1496 Thermal 448 | 209 36 203 Explosive . | . . . Electromagnetic 131 | . . 131 Impact . | . . . Slashing . | . . . Piercing . | . . . Highest Corruption 1 | . 1 1 Average Corruption 1 | . 1 1 Corruption Purged . | . . . Corruption Blocked . | . . . Effects 35 | . . 35 Message Errors 6 | . . 6 Matter Fused 11 | . . 11 Heat Flow Errors 7 | . . 7 Energy Discharges 3 | . . 3 Parts Fused 1 | . . 1 Data Loss (minor) 6 | . . 6 Alerts 1 | . . 1 Overload Shots . | . . . Overflow Damage 10 | . . 10 Projectiles . | . . . Explosions 10 | . . 10 Melee . | . . . Knockbacks . | . . . Impact . | . . . Kinetic . | . . . Secondary . | . . . Self-Inflicted Damage 36 | . . 36 Shots 1 | . . 1 Rammed 3 | . 1 2 Targets Rammed 3 | . 1 2 Kicked . | . . . Crushed . | . . . Highest Temperature 265 | 40 26 265 Average Temperature 45 | 18 14 102 Received Heat Transfer 213 | . 24 189 Siege Activations . | . . . Martial Activations . | . . . Shielding Activations . | . . . Robots Disrupted . | . . . Combat Hostiles . | . . . Robots Corrupted . | . . . Combat Hostiles . | . . . Parts Fried . | . . . Impact Corruptions . | . . . Robots Melted . | . . . Combat Hostiles . | . . . Parts Melted . | . . . Heat Transferred 875 | 475 75 325 Parts Sabotaged . | . . . Parts Stolen . | . . . Parts Stripped . | . . . Power Chain Reactions . | . . . Alert | -11 -10 -10 ------- Run | Yrd Mat Sub Maximum Alert Level . | . . . Low Security (%) 100 | 100 100 . Level 1 . | . . . Level 2 . | . . . Level 3 . | . . . Level 4 . | . . . Level 5 . | . . . High Security . | . . . Max Security . | . . . Peak Influence 10 | 10 7 . Initial . | . . . Average 1 | 2 . . Influence Increases 252 | 55 7 190 Destroy 0b10 Robot/C 120 | . . 120 Destroy 0b10 Robot/NC 55 | 55 . . Destroy Leader 10 | . . 10 Successful Hack 7 | . 7 . Lose Combat Pursuer 60 | . . 60 Influence Decreases 172 | 55 7 110 Time Decay 142 | 55 7 80 Lost Part 30 | . . 30 Squads Dispatched 1 | . 1 . Investigation 1 | . 1 . Extermination . | . . . Reinforcement . | . . . Assault . | . . . Garrison . | . . . Intercept . | . . . Searches Triggered . | . . . Construction Impeded . | . . . Haulers Reinforced . | . . . Active Scanning Responses . | . . . Cargo Convoy Interrupts . | . . . Stealth | -11 -10 -10 --------- Run | Yrd Mat Sub Distress Signals 1 | . 1 . Communications Jammed . | . . . Distress Signals . | . . . Times Spotted 34 | . 8 26 Peak Tracking Total 6 | . 5 6 Tactical Retreats 1 | . . 1 Traps | -11 -10 -10 ------- Run | Yrd Mat Sub Traps Triggered 4 | . 2 2 Indirectly . | . . . Trap Hack Attempts . | . . . Triggered . | . . . Disarmed . | . . . Reprogrammed . | . . . Reused . | . . . Traps Extracted . | . . . Installed . | . . . Triggered . | . . . Machines | -11 -10 -10 ---------- Run | Yrd Mat Sub Machines Disabled . | . . . Max in Single Turn . | . . . Machines Repaired . | . . . Machines Dismantled . | . . . Machines Sabotaged . | . . . Overloaded Fab Kills . | . . . Hacking | -11 -10 -10 --------- Run | Yrd Mat Sub Machines Accessed 1 | . 1 . Terminals 1 | . 1 . Fabricators . | . . . Repair Stations . | . . . Recycling Units . | . . . Scanalyzers . | . . . Garrison Access . | . . . Total Hacks 4 | . 4 . Successful 2 | . 2 . Failed 2 | . 2 . Catastrophic . | . . . Database Lockouts . | . . . Manual 4 | . 4 . Terminals 4 | . 4 . Fabricators . | . . . Repair Stations . | . . . Recycling Units . | . . . Scanalyzers . | . . . Garrison Access . | . . . Terminal Hacks 2 | . 2 . Part Schematic 1 | . 1 . Locate Traps 1 | . 1 . Fabricator Hacks . | . . . Repair Station Hacks . | . . . Recycling Unit Hacks . | . . . Scanalyzer . | . . . Garrison Access Hacks . | . . . Unauthorized Hacks . | . . . Terminals . | . . . Fabricators . | . . . Repair Stations . | . . . Recycling Units . | . . . Scanalyzers . | . . . Garrison Access . | . . . Data Cores Recovered . | . . . Used . | . . . Hacking Detections 1 | . 1 . Full Trace Events . | . . . Feedback Events . | . . . Feedback Blocked . | . . . Robot Schematics Acquired . | . . . Robots Built . | . . . Authchips . | . . . Time . | . . . Total Robot Build Rating . | . . . Part Schematics Acquired 1 | . 1 . Parts Built . | . . . Authchips . | . . . Time . | . . . Total Part Build Rating . | . . . Part Studies Acquired . | . . . Parts Repaired . | . . . Time . | . . . Parts Recycled . | . . . Recycled Matter . | . . . Retrieved Matter . | . . . Retrieved Components . | . . . Parts Scanalyzed . | . . . Part Schematics Acquired . | . . . Parts Damaged . | . . . Bothacking | -11 -10 -10 ------------ Run | Yrd Mat Sub Used RIF Installer . | . . . Robots Hacked . | . . . Non-combat . | . . . Combat . | . . . Robot Hacks Applied . | . . . Relay Couplers Released . | . . . Fabnet Peak Effective % . | . . . Robots Rewired . | . . . Allies Hacked . | . . . Hacks Repelled . | . . . Allies | -11 -10 -10 -------- Run | Yrd Mat Sub Total Allies . | . . . Largest Group . | . . . Highest-Rated Group . | . . . Highest-Rated Ally . | . . . Total Orders . | . . . Ally Attacks . | . . . Total Damage . | . . . Kills . | . . . Allies Corrupted . | . . . Allies Melted . | . . . Intel | -11 -10 -10 ------- Run | Yrd Mat Sub Active Infowar (turns) 3618 | 164 206 3248 Seismic 3618 | 164 206 3248 Robot Analysis Total . | . . . Derelict Logs Recovered 3 | . . 3 Drone Launches . | . . . Drone Recoveries . | . . . Exploration | -11 -10 -10 ------------- Run | Yrd Mat Sub Turns Passed 5108 | 254 206 4648 Spaces Moved 2214 | 55 181 1978 Core 6 | 2 . 4 Treads 1972 | 53 . 1919 Legs . | . . . Wheels 236 | . 181 55 Hover . | . . . Flight . | . . . Fastest Speed 50 | 50 95 50 Average Speed 189 | 156 95 198 Slowest Speed 240 | 160 95 240 Overloaded Moves . | . . . Propulsion Burnouts . | . . . Robots Hopped . | . . . Potential Cave-ins 14 | . . 14 Cave-ins Triggered . | . . . Exploration Rate (%) 43 | 4 39 86 Regions Visited 2 Branch Regions 1 Pre-discovered Areas 2 | . . 2 Known Exits Taken . | . . . Unknown Exits Taken 2 | 1 1 . Scrap Searched 3 | . . 3 Spaces Dug 26 | . . 26 Terrain Destroyed 150 | . . 150 Melee . | . . . Projectile 25 | . . 25 AOE 125 | . . 125 Terrain Rammed . | . . . Walls Destroyed . | . . . Machines Disabled . | . . . Actions | -11 -10 -10 --------- Run | Yrd Mat Sub Total 2950 | 178 204 2568 Wait 527 | 89 14 424 Move 2212 | 54 180 1978 Hop . | . . . Pick Up 23 | 5 3 15 Fast Attach 12 | 7 . 5 Attach 8 | . . 8 Detach 3 | . . 3 Swap 18 | . 1 17 Drop 17 | . . 17 Fire 125 | 23 5 97 Melee . | . . . Ram . | . . . Kick . | . . . Crush 3 | . 1 2 Escape Stasis . | . . . Rewire . | . . . Trap . | . . . Miscellaneous 2 | . . 2 Route ------- -11/Scrapyard -10/Materials -10/Subcaves (discovered 5 exits: [*Mat x2] / [*Rec] / [*Scr x2]) History --------- Turn | Location | Event 30 | -11/Scrapyard | Discovered new exit (range 15) 255 | -11/Scrapyard | Entered Materials 256 | -10/Materials | Met a group of wandering Federalists 314 | -10/Materials | Build established: Mutant 408 | -10/Materials | Discovered new exit (range 9) 425 | -10/Materials | Lost 4 allies 461 | -10/Materials | Entered Subcaves 462 | -10/Subcaves | Continued accompanying wandering Federalists (2) 462 | -10/Subcaves | Approached by a straggling Scientist 466 | -10/Subcaves | Ambushed by Subdwellers from Twisted Machinery 566 | -10/Subcaves | Shifting Twisted Machinery released Battle Rifle 624 | -10/Subcaves | Learned Materials interactive machine intel 651 | -10/Subcaves | Discovered new exit (range 15) 687 | -10/Subcaves | Scientist uncovered a shortcut to Scraptown 691 | -10/Subcaves | Wandering Federalist uncovered a shortcut to Scraptown 699 | -10/Subcaves | Learned Materials terminal intel 746 | -10/Subcaves | Learned location of Zion (-7) 746 | -10/Subcaves | Met a Zionite searching for "candidates" 1167 | -10/Subcaves | Shifting Twisted Machinery released Mak. Light Armor Plating 1297 | -10/Subcaves | Ambushed by Subdweller buried in earth 1299 | -10/Subcaves | Ambushed by Subdweller buried in earth 1299 | -10/Subcaves | Ambushed by Subdweller buried in earth 1349 | -10/Subcaves | Lost 4 parts (2n1u1w) 1768 | -10/Subcaves | Build established: Scavenger-Mutant 1878 | -10/Subcaves | Disturbed a concealed Subdweller 1879 | -10/Subcaves | Core integrity fell below 50% 2426 | -10/Subcaves | Shifting Twisted Machinery released Hvy. Battle Rifle 2427 | -10/Subcaves | Shifting Twisted Machinery released Sub. Power Source 2438 | -10/Subcaves | Shifting Twisted Machinery released Battle Cannon 4645 | -10/Subcaves | Discovered new exit (range 14) 4662 | -10/Subcaves | Core integrity fell below 20% 4832 | -10/Subcaves | Discovered new exit (range 14) 4953 | -10/Subcaves | Build established: Mutant 5050 | -10/Subcaves | Lost 3 parts (1n2w) 5109 | -10/Subcaves | Destroyed by 1G-751(R) with Subdweller Beam Cannon Last Messages --------------- 05021_ OF-WOQ(R) destroyed. 05024_ Dropped Sml. Storage Unit. 05025_ Dropped Lgt. Armor Plating. 05026_ Dropped Sub. Laser. 05026_ Dropped Hvy. Battle Rifle. 05027_ Acquired 55 matter. 05029_ Acquired Sub. Monowheel. 05035_ Acquired Scrap Shield. 05037_ Scrap Shield Fragment affixed to Scrap Shield (+46). [Achievement: Survival Of The Most Covered] 05040_ Scrap Shield Fragment affixed to Scrap Shield (+13). 05041_ Acquired 52 matter. 05045_ Acquired Sub. Machine Gun. 05051_ Subatomizers dissect the Sub. Optics. 05051_ Acquired Hvy. Battle Rifle. 05056_ Dropped Battle Cannon. 05058_ Acquired Sub. Laser. 05065_ Subatomizers dissect the Sub. Optics. Map ----- +----------------------------------------------------+ | ?????????????# ###???????????????????? | | ?????????????# ##???###???????????????? | | ?????????????# ##! ##???# ##??????????????? | | ?????????????## ## & ###?# #??????????????? | | ??????????????# ##! ! ### #??????????????? | | ?????????????## ]! ## ##?????????????? | | ?????????????# ##! #?????????????? | | ?????????????# ####### #?????????????? | | ?????????????## ## ### ##?????????????? | | ??????????????### # # ##??????????????? | | ????????????????## #####???????????????? | | ???????????????## # # #?????????????????? | | ???????????????# ##### #?????????????????? | | ????????????????# ##???## #?????????????????? | | ???????????????##" ????## #?????????????????? | | ???????????????#"""##??## ##?????????????????? | | ????????????????#" #### ##??????????????????? | | ???????????????##"" #???????????????????? | | ???????????????#"""" #???????????????????? | | ???????????????##### ##??????????????????? | | ???????????????????# ##?????????????????? | | ???????????????????##" #?????????????????? | | ????????????????????## #?????????????????? | | ?????????????????????### #?????????????????? | | ?????????????????????# ##?????????????????? | | ?????????????????????# @##??????????????????? | | ?????????????????????##R ##???????????????????? | | ??????????????????????# R"#???????????????????? | | ??????????????????????# ##???????????????????? | | ??????????????????????# "????????????????????? | | ??????????????????????# ???????????????????? | | ??????????????????????# ## ??????????????????? | | ??????????????????????###? ??????????????????? | | ??????????????????????????? ?????????????????? | | ???????????????????????????# ????????????????? | | ????????????????????????????# ???????????????? | | ????????????????????????????? #???????????????? | | ??????????????????????????????????????????????? | | ??????????????????????????????????????????????? | | ??????????????????????????????????????????????? | | ??????????????????????????????????????????????? | | ??????????????????????????????????????????????? | | ??????????????????????????????????????????????? | | ??????????????????????????????????????????????? | | ??????????????????????????????????????????????? | | ??????????????????????????????????????????????? | | ??????????????????????????????????????????????? | | ??????????????????????????????????????????????? | | ??????????????????????????????????????????????? | | ??###?????????????????????????????????????????? | +----------------------------------------------------+ Best States ------------- Heat Dissipation 25 Energy Generation 15 Energy Capacity 265 Matter Stores 300 Matter Capacity 300 Sight Range 16 Terrain Scan Density 10 Armor Coverage 800 Evasion (%) 50 Recoil Reduction 2 Item Schematics ----------------- Huge Storage Unit | -10/Materials | Hacked Robot Schematics ------------------ None Fabricated ------------ Nothing Repaired ---------- Nothing Studied --------- None Alien Tech Used ----------------- None Achievements -------------- Do Not Disturb Nice Directions, Buddy Strength In Numbers Survival Of The Most Covered Challenges ------------ None Game ------ Seed CompositeHeartChronowheel Manual? 0 Play Time 00:24:42 Cumulative 300.6 hours Start 2026.03.31 @ 13:37:24 End 2026.03.31 @ 14:01:25 Sessions 1 Manual Loads 0 Difficulty Rogue Special Mode None Game No. 155 Rogue 152 Adventurer 3 Explorer 0 Win Type - Total 8 Types 7/0/1/0/0/0/0/0/0/0 Lore% 77 Gallery% 70 Achievement% 44 Wizard Run 0 Options --------- Layout 1 ASCII 0 Keyboard 1 Movement Vi Keybinds 0 Fullscreen 1 Font 28/SmallcapsGlow Map View 50x43 Zoom Use 0% Tactical HUD 1 Map Filters NONE Filters NONE Steam X RUN: 12d9c8f4-80e3-4b5c-a39f-5a8cf6f498d7